[Event "US Masters 2022"]
[Site "Charlotte"]
[Date "2022.11.24"]
[Round "2.22"]
[White "Beradze, Irakli"]
[Black "Wu, Rochelle"]
[Result "1-0"]
[ECO "A13"]
[WhiteElo "2494"]
[BlackElo "2298"]
[Annotator "TA"]
[PlyCount "91"]
[EventDate "2022.11.23"]
[EventType "swiss"]
[EventCountry "USA"]
[SourceTitle "playchess.com"]
[Source "ChessBase"]
[SourceQuality "1"]
[TimeControl "5400+30"]

{[%evp 15,91,0,3,5,33,19,37,6,12,8,4,25,51,47,41,42,78,58,37,41,39,41,35,42,54,55,54,56,45,41,42,42,57,48,118,56,69,0,117,68,60,66,100,111,143,95,94,94,76,89,86,24,34,17,8,0,0,0,0,0,45,45,45,45,52,54,90,10,249,215,1298,1279,1485,1389,1464,1380,1163,1048]} 1. Nf3 {[%emt 0:07:52]} Nf6 {[%emt 0:00:05]} 2. g3 {[%emt 0:00:05]} d5 {[%emt 0:00:11]} 3. Bg2 {[%emt 0:00:05]} c6 {[%emt 0:00:09]} 4. c4 {[%emt 0:00:06]} e6 {[%emt 0:00:56]} 5. b3 {[%emt 0:00:44]} Bd6 {[%emt 0:01:51]} 6. Bb2 {[%emt 0:00:24]} Nbd7 {[%emt 0:00:22]} 7. O-O {[%emt 0:02:17]} O-O {[%emt 0:00:28]} 8. d3 {[%emt 0:02:13][%cal Bd2d3,Bd3e4,Be4e5][%mdl 32]} Re8 {[%emt 0:04:05]} 9. Nc3 {[%emt 0:03:58] A13: English Opening: 1...e6.} Qe7 {[%emt 0:01:54]} 10. Rc1 {[%emt 0:01:12] [#]} a5 $146 {[%emt 0:02:51]} ({Predecessor:} 10... Ba3 11. Qc2 Bxb2 12. Qxb2 dxc4 13. bxc4 e5 14. Nd2 Nc5 15. Rb1 Bf5 16. Qb4 Rad8 {1-0 (45) Kopacz,G (2294)-Jurcisin,I (2127) Presov 2002}) 11. cxd5 {[%emt 0:08:16] White is slightly better.} exd5 {[%emt 0:00:30]} 12. e4 {[%emt 0:00:04]} dxe4 {[%emt 0:02:21]} 13. dxe4 {[%emt 0:06:13]} Ba3 {[%emt 0:12:11]} 14. Bxa3 {[%emt 0:04:26]} Qxa3 {[%emt 0:00:19]} 15. Re1 {[%emt 0:00:07]} Qf8 {[%emt 0:30:27]} 16. h3 {[%emt 0:18:08]} Nc5 {[%emt 0:08:03][%cal Rc5e4]} 17. e5 {[%emt 0:01:10]} (17. Qc2 {simplifies} Rd8 18. Rcd1 Rxd1 19. Rxd1 Ne8 20. e5) 17... Rd8 {[%emt 0:02:16]} 18. Qc2 {[%emt 0:00:32]} Ne8 {[%emt 0:00:33]} 19. Rcd1 {[%emt 0:05:31] Inhibits g6.} (19. Red1 {simplifies} Qe7 20. Rxd8 Qxd8 21. Ne2) 19... Be6 {[%emt 0:04:57]} 20. Ng5 {[%emt 0:07:14][%csl Gg5][%cal Rc2h7]} g6 {[%emt 0:00:21]} 21. Nce4 $36 {[%emt 0:06:11][%mdl 2048] White has good play.} Nxe4 {[%emt 0:00:09]} 22. Nxe6 {[%emt 0:00:38]} fxe6 {[%emt 0:00:09]} 23. Bxe4 {[%emt 0:00:08]} Nc7 {[%emt 0:04:39]} 24. h4 {[%emt 0:01:40][%cal Oh4h5]} Qh6 {[%emt 0:02:00] Against h5} (24... Qg7 $14) 25. Rd6 {[%emt 0:03:08]} ({White should play} 25. Qc5 $16 {Black must now prevent Qe7.} Qf8 26. Qb6 Rxd1 27. Rxd1) 25... Nb5 $14 {[%emt 0:00:45]} 26. Rdd1 {[%emt 0:02:22]} ({Of course not} 26. Rxe6 Nd4 27. Qc4 Nxe6 28. Qxe6+ Kh8 $11) (26. Rd3 $14) 26... Qh5 {[%emt 0:00:11] [#]} (26... Nc7 $1 $11 {keeps the balance.}) 27. Bg2 {[%emt 0:05:21]} (27. Kg2 $1 $16) 27... Qg4 {[%emt 0:02:37]} 28. Kh2 $1 {[%emt 0:03:26]} Qf5 {[%emt 0:01:52]} 29. Qc5 {[%emt 0:01:19]} Qf7 {[%emt 0:08:20]} 30. Kg1 {[%emt 0:01:43]} ({Better is} 30. Rxd8+ Rxd8 31. a4) 30... Rd7 $16 {[%emt 0:04:55] [#]} 31. a4 $1 {[%emt 0:02:54]} Nc7 {[%emt 0:00:06]} 32. Rxd7 {[%emt 0:00:12]} Qxd7 {[%emt 0:00:05]} 33. Re4 {[%emt 0:00:23] White is much more active.} (33. Qb6 $16) 33... Qd1+ $11 {[%emt 0:03:20]} 34. Kh2 {[%emt 0:00:14]} Rf8 {[%emt 0:00:04]} 35. f4 {[%emt 0:07:06]} Rd8 {[%emt 0:02:07]} 36. Kh3 {[%emt 0:00:33]} Rd7 {[%emt 0:01:24]} 37. Qxa5 {[%emt 0:00:20]} h5 {[%emt 0:00:30]} 38. Qe1 {[%emt 0:00:10] Strongly threatening Qxd1.} Qc2 {[%emt 0:00:43][%cal Od7d1]} 39. Rc4 {[%emt 0:00:26]} Qb2 {[%emt 0:00:39]} (39... Qxb3 $2 40. Rb4 Qd1 41. Qxd1 Rxd1 42. Rxb7 $18) 40. Qc3 {[%emt 0:01:04]} Qe2 {[%emt 0:00:30]} 41. Qc2 {[%emt 0:00:30] Against Rd3} (41. Re4 $16 Qg4+ 42. Kh2) 41... Qg4+ {[%emt 0:00:04] Black cannot hold the game after this.} (41... Rd2 $1 $11 {and Black stays safe.} 42. Qxg6+ Kf8) 42. Kh2 $18 {[%emt 0:00:02]} Nd5 $2 {[%emt 0:00:42]} (42... Kh7 43. b4 Qf5) 43. Bh3 {[%emt 0:00:22][%cal Bg2h3,Bh3e6,Be6d7][%mdl 32] White is clearly winning.} Qf3 {[%emt 0:00:34]} 44. Bxe6+ {[%emt 0:00:40]} Kg7 {[%emt 0:00:01]} 45. Bxd7 {[%emt 0:00:09]} Ne3 {[%emt 0:00:04]} 46. Rc3 {[%emt 0:00:06] Weighted Error Value: White=0.15 (very precise) /Black=0.27 (precise)} 1-0

[Event "US Masters 2022"]
[Site "Charlotte"]
[Date "2022.11.24"]
[Round "2.24"]
[White "Canty, James"]
[Black "Smith, Bryan"]
[Result "1/2-1/2"]
[ECO "B66"]
[WhiteElo "2158"]
[BlackElo "2412"]
[Annotator "TA"]
[PlyCount "99"]
[EventDate "2022.11.23"]
[EventType "swiss"]
[EventCountry "USA"]
[SourceTitle "playchess.com"]
[Source "ChessBase"]
[SourceQuality "1"]
[TimeControl "5400+30"]

{[%evp 18,99,12,7,9,-8,0,-18,54,61,50,21,27,15,20,13,28,19,18,-52,0,0,6,-66,-60,-70,-69,-77,-71,-70,-67,-65,-75,-53,-51,-68,0,0,-6,0,0,-42,-6,-103,-41,-39,0,0,0,0,0,0,0,0,0,0,0,0,0,0,0,0,0,0,0,0,0,0,0,0,0,-8,-8,-8,-8,-8,-8,-8,-8,-8,-8,-8,0,-8]} 1. e4 {[%emt 0:07:25]} c5 {[%emt 0:01:11]} 2. Nf3 {[%emt 0:00:04]} d6 {[%emt 0:00:09]} 3. d4 {[%emt 0:00:04]} cxd4 {[%emt 0:00:03]} 4. Nxd4 {[%emt 0:00:04]} Nf6 {[%emt 0:00:03]} 5. Nc3 {[%emt 0:00:05]} Nc6 {[%emt 0:00:10]} 6. Bg5 {[%emt 0:00:06]} e6 {[%emt 0:00:14]} 7. Qd2 {[%emt 0:00:08]} Be7 {[%emt 0:00:37]} 8. O-O-O {[%emt 0:01:04]} a6 $1 {[%emt 0:00:11][%mdl 4] is currently scoring better than 8...0-0.} 9. f3 {[%emt 0:04:39]} Nxd4 {[%emt 0:02:33]} 10. Qxd4 {[%emt 0:00:08]} b5 {[%emt 0:01:29] B66: Sicilian: Richter-Rauzer: 7...a6 8 0-0-0 h6.} 11. g4 {[%emt 0:06:13]} h6 {[%emt 0:21:27]} 12. Be3 {[%emt 0:20:32]} e5 {[%emt 0:02:29] Prevents h4.} (12... Bb7 $11) 13. Qd2 $14 {[%emt 0:00:42]} b4 {[%emt 0:06:03] Inhibits h4.} 14. Nd5 {[%emt 0:03:00]} Nxd5 {[%emt 0:00:14] [#]} 15. exd5 $146 {[%emt 0:00:07]} ({Predecessor:} 15. Qxd5 Be6 16. Qc6+ Bd7 17. Qc4 a5 18. Kb1 Rc8 19. Qd5 Bc6 20. Bb5 Qd7 21. Bxc6 Rxc6 {0-1 (43) Gaviria,A (2077)-Salcedo,P (1869) Ibague 2013}) 15... a5 {[%emt 0:07:51]} 16. Kb1 {[%emt 0:04:43][%cal Oh2h4]} Bd7 {[%emt 0:16:37] Against h4} 17. Rg1 {[%emt 0:11:34]} Bg5 {[%emt 0:07:32]} 18. Re1 {[%emt 0:07:18] [#]} (18. Bd3 $11) 18... O-O {[%emt 0:04:29]} (18... Qb6 $1 $15) 19. Bd3 $11 {[%emt 0:03:11]} Qf6 {[%emt 0:03:50]} 20. h4 {[%emt 0:05:39]} ({White should play} 20. Bxg5 $11 hxg5 21. Qf2) 20... Bxh4 $15 {[%emt 0:07:42]} 21. g5 {[%emt 0:00:09]} hxg5 {[%emt 0:01:53]} (21... Qxf3 $2 22. Ref1 Qh3 23. gxh6 $18) 22. Bxg5 {[%emt 0:11:04]} Bxg5 {[%emt 0:00:06]} (22... Qxf3 $2 23. Bxh4 Bg4 24. Ref1 $18) (22... Bxe1 23. Bxf6) 23. Rxg5 {[%emt 0:00:09][%cal Od3h7] Threatens to win with Bh7+!} g6 {[%emt 0:01:54]} (23... Qxf3 24. Rxg7+ $3 {[%mdl 512]} (24. Qh2 Qh3 $16) 24... Kxg7 25. Qg5+ Kh8 26. Qh6+ Kg8 27. Qh7#) 24. Rh1 {[%emt 0:05:30][%cal Od2h2]} Kg7 {[%emt 0:01:40]} (24... Qxf3 $2 25. Qh2 Kg7 26. Rg3 $18) 25. Rxe5 {[%emt 0:03:58][%mdl 64] White wants to mate with Qh6+.} Rh8 {[%emt 0:04:22] Inhibits Qh6+.} (25... Qxe5 26. Qh6+ Kf6 27. f4 Qxd5 28. Qh4+ Kg7 29. Qh6+ Kf6 30. Qh4+ Kg7 31. Qh6+ Kf6 $11) 26. Ree1 {[%emt 0:01:13]} Rxh1 {[%emt 0:04:31]} (26... Rae8 $15) 27. Rxh1 $11 {[%emt 0:00:05]} Rh8 {[%emt 0:00:08] Prevents Qh6+.} 28. Rxh8 {[%emt 0:01:27]} Kxh8 {[%emt 0:00:01][%mdl 4096] Endgame KQB-KQB} 29. Qh6+ {[%emt 0:00:31]} (29. Qe3 {simplifies} Kg7 30. a3 bxa3 31. bxa3 g5 32. c4) 29... Kg8 {[%emt 0:00:01]} 30. Be4 {[%emt 0:01:42]} (30. Qe3 $11 {remains equal.}) 30... Qd4 {[%emt 0:01:26]} (30... Qe5 $17 31. Qh4 Kg7) 31. b3 $15 {[%emt 0:00:45]} a4 {[%emt 0:01:28]} 32. bxa4 {[%emt 0:00:10] The position is equal.} Bxa4 {[%emt 0:00:09]} 33. Qf4 {[%emt 0:01:07]} Qd1+ {[%emt 0:01:42]} 34. Kb2 {[%emt 0:00:13]} (34. Qc1 {simplifies} Qxc1+ 35. Kxc1 Kg7 36. Kb2) 34... Qd4+ {[%emt 0:00:11]} 35. Kb1 {[%emt 0:00:04]} Qe5 {[%emt 0:02:50]} 36. Qxe5 {[%emt 0:01:37]} dxe5 $11 {[%emt 0:00:01] KB-KB} 37. Kb2 {[%emt 0:00:06] And now a3 would win.} f5 {[%emt 0:00:12] Against a3} 38. Bd3 {[%emt 0:00:03] a3 is the strong threat.} Kf7 {[%emt 0:00:25]} 39. a3 {[%emt 0:00:15]} bxa3+ {[%emt 0:00:27]} 40. Kxa3 {[%emt 0:00:05]} Bd7 {[%emt 0:00:42]} 41. Kb4 {[%emt 0:00:01] Strongly threatening Kc5.} g5 {[%emt 0:00:33]} 42. c4 {[%emt 0:00:40]} g4 {[%emt 0:00:28]} 43. fxg4 {[%emt 0:00:07]} e4 {[%emt 0:00:36][%cal Be5e4,Be4e3][%mdl 32]} 44. Bc2 {[%emt 0:02:18]} e3 $1 {[%emt 0:00:18]} 45. Kc3 {[%emt 0:00:23]} (45. Bxf5 Bxf5 46. gxf5 e2 47. Kc3 e1=Q+ 48. Kd3 Qe5 49. Kc2 Qxf5+ 50. Kd2 Kf6 51. d6 Ke5 52. c5 Kd4 53. Ke2 Qe5+ 54. Kf2 Qf6+ 55. Kg2 Ke3 56. Kh3 Kf3 57. Kh2 Qg6 58. Kh3 Qh7#) (45. gxf5 e2 46. Kb3 e1=Q) (45. Bd1 $5 {[%cal Rg4g5]} fxg4 46. Kc3 $11) 45... fxg4 {[%emt 0:00:15]} 46. Be4 {[%emt 0:00:09] aiming for Kd3.} g3 {[%emt 0:00:42]} 47. c5 {[%emt 0:00:33] [#]} (47. Kd3 {[#]} Bf5 $1 {[%mdl 512]} 48. Bxf5 g2 49. Kxe3 g1=Q+ $19) 47... Bf5 $1 {[%emt 0:00:54]} 48. Bg2 {[%emt 0:01:10]} (48. Bxf5 g2 49. Bg4 g1=Q $19) 48... Ke7 {[%emt 0:00:21]} 49. d6+ {[%emt 0:00:47]} Ke6 {[%emt 0:00:39]} 50. Bf3 {[%emt 0:00:26] Weighted Error Value: White=0.13 (very precise) /Black=0.10 (very precise)} 1/2-1/2

[Event "US Masters 2022"]
[Site "Charlotte"]
[Date "2022.11.25"]
[Round "3.2"]
[White "Negi, Parimarjan"]
[Black "Korley, Kassa"]
[Result "1/2-1/2"]
[ECO "C42"]
[WhiteElo "2639"]
[BlackElo "2451"]
[Annotator "TA"]
[PlyCount "84"]
[EventDate "2022.11.23"]
[EventType "swiss"]
[EventCountry "USA"]
[SourceTitle "playchess.com"]
[Source "ChessBase"]
[SourceQuality "1"]
[TimeControl "5400+30"]

{[%evp 10,84,31,25,22,25,44,13,24,24,14,17,22,15,17,16,14,1,25,0,5,0,3,8,6,5,9,0,0,-4,-3,-5,42,41,34,31,41,0,0,0,0,0,14,14,14,0,0,0,0,0,0,0,3,0,0,0,0,0,2,0,0,0,0,0,0,0,0,0,0,0,0,0,0,0,0,0,0]} 1. e4 {[%emt 0:00:34]} e5 {[%emt 0:00:10]} 2. Nf3 {[%emt 0:00:49]} Nf6 {[%emt 0:00:09]} 3. Nxe5 {[%emt 0:03:16]} d6 {[%emt 0:00:13]} 4. Nf3 {[%emt 0:00:23]} Nxe4 {[%emt 0:00:06]} 5. d4 {[%emt 0:00:18]} d5 {[%emt 0:00:07]} 6. Bd3 {[%emt 0:00:22]} Bf5 {[%emt 0:01:08] C42: Petroff Defence: 3 Nxe5 and unusual White 3rd moves.} 7. O-O {[%emt 0:01:52]} Be7 {[%emt 0:00:09]} 8. Nc3 {[%emt 0:20:04]} O-O {[%emt 0:08:55]} 9. Re1 {[%emt 0:01:09][%cal Rc3e4]} Nxc3 {[%emt 0:05:01]} 10. bxc3 {[%emt 0:00:14]} Bxd3 {[%emt 0:00:13]} 11. cxd3 {[%emt 0:00:39]} Nc6 {[%emt 0:03:13]} 12. Rb1 {[%emt 0:01:08]} Rb8 {[%emt 0:00:31]} 13. Bf4 {[%emt 0:12:10]} Bd6 {[%emt 0:06:31]} 14. Qd2 {[%emt 0:00:20] [#]} a6 $146 {[%emt 0:09:02]} ({Predecessor:} 14... h6 15. Be5 Re8 16. Qf4 Re6 17. Qg4 Rg6 18. Qh3 b5 19. Nh4 Re6 20. f4 b4 {½-½ (45) Hansen,E (2606)-Matlakov,M (2674) Chess.com INT 2022}) 15. h4 {[%emt 0:03:51]} Bxf4 {[%emt 0:02:28]} 16. Qxf4 {[%emt 0:00:17]} b5 {[%emt 0:02:07]} 17. h5 {[%emt 0:01:09]} Qd6 {[%emt 0:03:46]} 18. Qxd6 {[%emt 0:06:27]} cxd6 {[%emt 0:00:04]} 19. h6 {[%emt 0:00:11]} gxh6 {[%emt 0:04:39]} 20. Nh4 {[%emt 0:01:20]} Rfc8 {[%emt 0:08:20]} (20... Kg7 $11 {is superior.}) 21. Nf5 $14 {[%emt 0:00:55][%csl LRd6,LRh6]} Kf8 {[%emt 0:03:57]} 22. Nxd6 {[%emt 0:15:56]} Rc7 {[%emt 0:07:05]} 23. a4 {[%emt 0:04:14][%cal Ra4b5]} b4 {[%emt 0:07:03] The position is equal.} 24. cxb4 {[%emt 0:01:32] [#] b5 is the strong threat.} Nxd4 {[%emt 0:00:39] And now ...Rc6 would win.} 25. b5 {[%emt 0:01:47] Prevents Rc6.} axb5 {[%emt 0:01:07]} (25... Rd7 $2 26. bxa6 Ra8 27. Rb6 $18) 26. Nxb5 {[%emt 0:00:48]} (26. axb5 $2 {loses.} Rd7 27. Nxf7 (27. Rb4 $2 Nc2 $19) 27... Kxf7 $19) 26... Rcb7 {[%emt 0:02:14]} 27. Na3 {[%emt 0:06:41]} Rxb1 {[%emt 0:03:52]} 28. Rxb1 $11 {[%emt 0:12:03][%mdl 4096] Endgame KRN-KRN} Ra8 {[%emt 0:21:41]} 29. Rb4 {[%emt 0:00:16]} Nc6 {[%emt 0:00:00]} 30. Rh4 {[%emt 0:00:37][%cal Oa3c2]} d4 {[%emt 0:00:00]} 31. Nc4 {[%emt 0:02:07]} Rxa4 {[%emt 0:00:00]} 32. Rxh6 {[%emt 0:00:02]} Nb4 {[%emt 0:00:00]} 33. Ne5 {[%emt 0:00:58]} Ra3 {[%emt 0:00:00]} 34. Rxh7 {[%emt 0:01:08]} Nxd3 {[%emt 0:00:00]} 35. Rxf7+ {[%emt 0:01:36]} Ke8 {[%emt 0:00:00]} 36. Rf6 {[%emt 0:00:43]} Ke7 {[%emt 0:00:00]} (36... Nxe5 $5 37. Re6+ $8 Kd7 38. Rxe5 Ra1+ 39. Kh2 Kd6 $11) 37. Ng4 {[%emt 0:00:17]} Ne5 {[%emt 0:00:00][%mdl 64] [#]} 38. Rf4 {[%emt 0:00:22]} d3 {[%emt 0:00:17][%mdl 64]} 39. Ne3 {[%emt 0:00:12]} Nc6 {[%emt 0:02:32]} 40. Re4+ {[%emt 0:00:02]} Kd7 {[%emt 0:00:12] Strongly threatening ...d2.} 41. Nc4 {[%emt 0:00:25][%cal Of2f4] Against d2. aiming for f4!} Rc3 {[%emt 0:01:15][%cal Oc3c4] Threatens to win with ...Rxc4!} ({Much less strong is} 41... Ra2 42. Kf1 $16 (42. Re3 Nb4 $18)) 42. Re3 {[%emt 0:01:38]} Rxc4 {[%emt 0:00:07] Weighted Error Value: White=0.05 (flawless) /Black=0.03 (flawless)} 1/2-1/2

[Event "US Masters 2022"]
[Site "Charlotte"]
[Date "2022.11.25"]
[Round "3.3"]
[White "Naroditsky, Daniel"]
[Black "Nakar, Eylon"]
[Result "1-0"]
[ECO "C07"]
[WhiteElo "2617"]
[BlackElo "2436"]
[Annotator "TA"]
[PlyCount "81"]
[EventDate "2022.11.23"]
[EventType "swiss"]
[EventCountry "USA"]
[SourceTitle "playchess.com"]
[Source "ChessBase"]
[SourceQuality "1"]
[TimeControl "5400+30"]

{[%evp 15,81,5,22,20,22,16,22,24,12,27,18,18,21,33,11,0,0,0,0,-19,22,25,24,-40,4,3,4,-18,-17,-14,70,52,59,62,60,58,108,119,125,119,129,119,119,65,71,58,91,36,38,33,31,33,41,39,46,29,77,23,31,8,146,131,174,153,172,178,4133,2063]} 1. e4 {[%emt 0:00:05]} e6 {[%emt 0:08:40]} 2. d4 {[%emt 0:00:13]} d5 {[%emt 0:00:06]} 3. Nd2 {[%emt 0:00:34]} c5 {[%emt 0:00:22]} 4. Ngf3 {[%emt 0:00:07]} cxd4 {[%emt 0:00:15]} 5. Nxd4 {[%emt 0:00:06]} Nc6 {[%emt 0:00:15]} 6. Bb5 {[%emt 0:00:07]} Bd7 {[%emt 0:00:19]} 7. Nxc6 {[%emt 0:00:11]} bxc6 {[%emt 0:00:05]} 8. Bd3 {[%emt 0:00:08]} Qc7 {[%emt 0:00:51]} 9. Qe2 {[%emt 0:01:50] C07: French Tarrasch: 3...c5, 4 Ngf3 and 4 exd5 Qxd5.} Ne7 {[%emt 0:00:34]} 10. O-O {[%emt 0:01:40]} Ng6 {[%emt 0:00:14]} 11. Nf3 {[%emt 0:00:08] The position is equal.} Be7 {[%emt 0:01:54]} 12. c4 {[%emt 0:05:01]} dxe4 {[%emt 0:01:19]} 13. Bxe4 {[%emt 0:00:24]} f5 {[%emt 0:00:37]} 14. Bc2 {[%emt 0:06:32]} O-O {[%emt 0:02:52]} 15. Ng5 {[%emt 0:08:08] [#]} Rf6 $146 {[%emt 0:02:35]} ({Predecessor:} 15... Bxg5 16. Bxg5 e5 17. Rad1 Rae8 18. h4 Rf7 19. h5 Nf8 20. Bd2 Ne6 21. Bc3 Nf4 {½-½ (30) Svanda,O (2361)-Budisavljevic,L (2516) Teplice 2022}) 16. Re1 {[%emt 0:10:53]} c5 {[%emt 0:09:48]} 17. Nf3 {[%emt 0:04:10]} h6 {[%emt 0:34:07]} 18. h4 {[%emt 0:08:12]} Rd8 {[%emt 0:29:14]} 19. Qe3 {[%emt 0:09:02]} (19. h5 $11 Nf4 20. Bxf4 Qxf4 21. Rad1) 19... Bd6 {[%emt 0:01:22]} (19... Bc6 $5 {[%cal Rc6f3]}) 20. h5 {[%emt 0:08:01]} Nf4 {[%emt 0:00:54]} 21. b4 {[%emt 0:06:07] [#] Strongly threatening bxc5.} Nxh5 {[%emt 0:00:44]} 22. Bb2 {[%emt 0:00:57]} Rff8 {[%emt 0:02:59]} (22... cxb4 $11 23. Be5 Bxe5 24. Nxe5 Bc6) 23. Ne5 $36 {[%emt 0:01:30][%mdl 3072] White has compensation. White has the initiative.} Bc8 {[%emt 0:00:50]} 24. b5 {[%emt 0:01:33]} Nf6 {[%emt 0:00:44][%cal Of6e4]} 25. Rad1 {[%emt 0:03:19]} Bb7 {[%emt 0:00:29]} ({Black should try} 25... Rfe8 $14) 26. Nc6 $16 {[%emt 0:00:38]} Rde8 {[%emt 0:00:20]} 27. Be5 {[%emt 0:03:10] White is much more active.} Bxe5 {[%emt 0:00:16]} 28. Qxe5 {[%emt 0:00:02]} Qxe5 {[%emt 0:01:14]} 29. Rxe5 {[%emt 0:00:07]} (29. Nxe5 $16 Rd8 30. a4) 29... Bxc6 $14 {[%emt 0:00:23]} 30. bxc6 {[%emt 0:00:02]} Rf7 {[%emt 0:00:37]} 31. Rde1 {[%emt 0:01:44]} (31. Rxc5 $16 Rc7 32. Rd6) 31... Rc7 {[%emt 0:00:27]} 32. Rxe6 {[%emt 0:01:07]} Rxe6 {[%emt 0:00:17]} 33. Rxe6 {[%emt 0:00:01][%mdl 4096] Endgame KRB-KRN} Ne4 {[%emt 0:00:44]} 34. f3 {[%emt 0:02:11]} Ng5 {[%emt 0:00:30]} 35. Rg6 {[%emt 0:01:37]} (35. Re5 {simplifies} Rxc6 36. Rxf5 Ne6 37. Be4) 35... Nf7 {[%emt 0:00:31]} (35... f4 $11) 36. f4 {[%emt 0:03:09]} (36. Bxf5 $16 {Black must now prevent f4.} Ne5 37. Re6 Nxc6 38. Be4) 36... Nd8 $11 {[%emt 0:00:29]} 37. Ba4 {[%emt 0:00:01] With the idea Rd6.} (37. Rd6 $5 {[%cal Rd6d8]} Nxc6 38. Bxf5 $14) 37... Nf7 {[%emt 0:00:25] Inhibits Rd6.} (37... Kf7 $1 $11 {remains equal.} 38. Rd6 Ke7) 38. Re6 {[%emt 0:00:29]} Kf8 {[%emt 0:00:28]} 39. g3 {[%emt 0:00:58]} a6 {[%emt 0:00:31]} 40. Kf2 {[%emt 0:00:11]} Ra7 $2 {[%emt 0:00:38] [#]} (40... Nd8 41. Re5 g6 42. Rxc5 Rc8) 41. Re8+ $3 {[%emt 0:00:06][%mdl 512] Weighted Error Value: White=0.15 (very precise) /Black=0.22 (precise)} 1-0

[Event "US Masters 2022"]
[Site "Charlotte"]
[Date "2022.11.24"]
[Round "3.3"]
[White "Naroditsky, Daniel"]
[Black "Grinberg, Eyal"]
[Result "*"]
[ECO "C07"]
[WhiteElo "2617"]
[BlackElo "2491"]
[Annotator "TA"]
[PlyCount "38"]
[EventDate "2022.11.23"]
[EventType "swiss"]
[EventCountry "USA"]
[SourceTitle "playchess.com"]
[Source "ChessBase"]
[SourceQuality "1"]
[TimeControl "5400+30"]

{[%evp 15,38,7,15,16,20,10,24,12,33,31,19,16,26,26,16,-11,-19,0,9,-34,20,22,36,-50,0]} 1. e4 {[%emt 0:00:05]} e6 {[%emt 0:08:40]} 2. d4 {[%emt 0:00:13]} d5 {[%emt 0:00:06]} 3. Nd2 {[%emt 0:00:34]} c5 {[%emt 0:00:22]} 4. Ngf3 {[%emt 0:00:07]} cxd4 {[%emt 0:00:15]} 5. Nxd4 {[%emt 0:00:06]} Nc6 {[%emt 0:00:15]} 6. Bb5 {[%emt 0:00:07]} Bd7 {[%emt 0:00:19]} 7. Nxc6 {[%emt 0:00:11]} bxc6 {[%emt 0:00:05]} 8. Bd3 {[%emt 0:00:08]} Qc7 {[%emt 0:00:51]} 9. Qe2 {[%emt 1:33:29] C07: French Tarrasch: 3...c5, 4 Ngf3 and 4 exd5 Qxd5.} Ne7 {[%emt 0:00:34]} 10. O-O {[%emt 1:32:09]} Ng6 {[%emt 0:00:14]} 11. Nf3 {[%emt 0:00:08] White has an edge.} Be7 {[%emt 0:01:54]} 12. c4 {[%emt 0:05:01]} dxe4 {[%emt 0:01:19]} 13. Bxe4 {[%emt 0:00:24]} f5 {[%emt 0:00:37]} 14. Bc2 {[%emt 0:06:32]} O-O {[%emt 0:02:52]} 15. Ng5 {[%emt 0:08:08] [#]} (15. c5 {is interesting.} Rae8 16. Ng5 h6 17. Nxe6 Bxc5 18. Qe3) 15... Rf6 $146 {[%emt 0:02:35]} ({Predecessor:} 15... Bxg5 16. Bxg5 e5 17. Rad1 Rae8 18. h4 Rf7 19. h5 Nf8 20. Bd2 Ne6 21. Bc3 Nf4 {½-½ (30) Svanda,O (2361)-Budisavljevic,L (2516) Teplice 2022}) 16. Re1 {[%emt 0:10:53]} c5 {[%emt 0:09:48]} 17. Nf3 {[%emt 0:04:10]} h6 {[%emt 0:34:07]} (17... Bc6 $15) 18. h4 $11 {[%emt 0:08:12]} Rd8 {[%emt 0:29:14]} 19. Qe3 {[%emt 0:09:02]} (19. h5 $14 Nf4 20. Bxf4 Qxf4 21. Rad1) 19... Bd6 {[%emt 0:01:22] An uneventful encounter.   Weighted Error Value: White=0.20 (precise) /Black=0.12 (very precise)} (19... Bc6 $15 20. h5 Bxf3 21. Qxf3 Ne5) *